Cogmind - Beta 15 @@@ ROGUE MODE // 2025.07.22 @ 19:43:09 Player: Skysub Result: Destroyed by Autobeam Turret with Autobeam Performance ------------- Evolutions (0) 0 Regions Visited (2) 400 Robots Destroyed (29) 145 Value Destroyed (605) 605 Prototype IDs (11) 220 Alien Tech Used (0) 0 Bonus (0) 0 TOTAL SCORE: 1370 Bonus ------- None Cogmind --------- Core Integrity 0/250 Matter 24/300 Energy 100/100 System Corruption 0% Temperature Cool (6) Movement Rolling (105) Location -10/Subcaves Parts ------- > --- POWER (1) -------- (None) > --- PROPULSION (2) --- Compact Wheel Subdweller Monowheel > --- UTILITY (2) ------ Large Storage Unit Structural Scanner > --- WEAPON (2) ------- Grenade Launcher > --- INVENTORY (15) --- Subdweller Monowheel Flightbrick Subdweller Optics Subdweller Beam Cannon Assault Rifle Light Assault Rifle Light Assault Rifle Subdweller Machine Gun Subdweller Machine Gun Subdweller Machine Gun Rocket Launcher Rocket Launcher Peak State ------------ > --- POWER ------------ (None) > --- PROPULSION ------- Compact Wheel Subdweller Monowheel > --- UTILITY ---------- Large Storage Unit Structural Scanner > --- WEAPON ----------- Subdweller Beam Cannon Assault Rifle > --- INVENTORY -------- Flightbrick Subdweller Optics Light Assault Rifle Light Assault Rifle Subdweller Machine Gun Subdweller Machine Gun Grenade Launcher Rocket Launcher Rocket Launcher Mining Laser [Rating: 13] Favorites ----------- Power Ion Engine Engine Ion Engine Propulsion Light Treads Treads Light Treads Wheel Compact Wheel Utility Large Storage Unit Device Structural Scanner Storage Large Storage Unit Weapon Assault Rifle Energy Cannon Subdweller Beam Cannon Ballistic Gun Assault Rifle Launcher Grenade Launcher Special Weapon Mining Laser Build | -11 -10 -10 ------- Run | Yrd Mat Sub Slots Evolved . | . . . Power . | . . . Propulsion . | . . . Utility . | . . . Weapon . | . . . Parts Attached 16 | 6 4 6 Power 1 | 1 . . Engine 1 | 1 . . Core . | . . . Reactor . | . . . Propulsion 5 | 2 . 3 Treads 2 | 2 . . Leg . | . . . Wheel 3 | . . 3 Hover . | . . . Flight . | . . . Utility 4 | 1 3 . Device 1 | . 1 . Storage 3 | 1 2 . Processor . | . . . Hackware . | . . . Protection . | . . . Artifact . | . . . Weapon 6 | 2 1 3 Energy Gun . | . . . Energy Cannon 1 | . . 1 Ballistic Gun 3 | 2 . 1 Ballistic Cannon . | . . . Launcher 1 | . 1 . Special Weapon 1 | . . 1 Impact Weapon . | . . . Slashing Weapon . | . . . Piercing Weapon . | . . . Special Melee Weapon . | . . . Unidentified Prototypes . | . . . Parts Lost 6 | . . 6 Power 1 | . . 1 Propulsion 3 | . . 3 Utility . | . . . Weapon 2 | . . 2 Highest Loss Streak 3 | . . 3 To Critical Strikes . | . . . Average Backups 7 | 2 8 8 Power . | . . . Propulsion 1 | 1 2 1 Utility . | . 1 . Weapon 5 | . 4 6 Tool/Special . | . . . Unused Backups 10 | . 1 9 Power 1 | . 1 . Propulsion 2 | . . 2 Utility 1 | . . 1 Weapon 6 | . . 6 Tool/Special . | . . . Average Slot Usage (%) 87 | . 85 89 Engine 10 | . 14 7 Treads 20 | . 28 16 Wheel 4 | . . 7 Device 8 | . . 14 Storage 14 | . 14 14 Energy Cannon 2 | . . 4 Ballistic Gun 15 | . 15 16 Launcher 6 | . 12 2 Special Weapon 2 | . . 4 Peak Build Rating 13 | 6 8 13 Average Rating 7 | 5 6 8 On Entrance 4 | . 6 7 Naked Turns . | . . . Heaviest Build 40 | 14 40 32 Greatest Support 40 | 40 40 40 Greatest Overweight (x) 2 | . . 2 Average Overweight (x) . | . . . Largest Inventory Capacity 15 | 8 15 15 Average Capacity 12 | 7 10 15 Most Carried 15 | 4 11 15 Average Carried 8 | 2 8 9 Final Capacity 15 | 8 15 15 Final Carried 15 | 4 7 15 Class Distribution -------------------- 100% | Mutant Dominant Class ---------------- Mutant | -10/Materials Mutant | -10/Subcaves Resources | -11 -10 -10 ----------- Run | Yrd Mat Sub Matter Collected 570 | 262 81 227 Remotely . | . . . Salvage Created 699 | 109 331 259 Parts 52 | 8 23 21 Haulers Intercepted . | . . . Recyclers Shooed 2 | . 2 . Parts Field Recycled . | . . . Retrieved Matter . | . . . Parts Self-Destructed 4 | . . 4 Prevented . | . . . Kills | -11 -10 -10 ------- Run | Yrd Mat Sub Combat Hostiles Destroyed 20 | . 10 10 Guns 5 | . 2 3 Cannons 2 | . . 2 AOE 13 | . 8 5 Classes Destroyed 9 | 2 5 2 Worker 2 | . 2 . Builder 2 | . 2 . Tunneler 2 | 2 . . Recycler 2 | 1 1 . Watcher 1 | . 1 . Swarmer 9 | . 6 3 Grunt 4 | . 4 . Sentry 1 | . . 1 Subdweller 6 | . . 6 Best Kill Streak 7 | 3 7 3 Combat Bots Only 4 | . 4 3 Max Kills in Single Turn 2 | 1 2 1 Gunslinging . | . . . Exploded 2 | . 2 1 Melee . | . . . Uniques/NPCs Destroyed . | . . . Combat | -11 -10 -10 -------- Run | Yrd Mat Sub Hostile Shots Fired 100 | . 18 82 Missed 37 | . 4 33 Hits 63 | . 14 49 Projectile 63 | . 14 49 Damage Taken 1027 | . 186 841 Core 255 | . 33 222 Absorbed by Shields . | . . . Core Remaining (%) 100 | 100 . . Volleys Fired 87 | 10 18 59 Largest 2 | 2 2 2 Hottest 100 | 40 50 100 Shots Fired 128 | 20 23 85 Gun 73 | 20 7 46 Cannon 14 | . . 14 Launcher 28 | . 16 12 Special 13 | . . 13 Kinetic 73 | 20 7 46 Thermal 27 | . . 27 Explosive 28 | . 16 12 Electromagnetic . | . . . Robot Hit Streak 16 | 8 13 16 Robot Miss Streak 3 | 1 2 3 Penetration Max . | . . . Secondary Targets . | . . . Shots Hit Robots 70 | 15 8 47 Core Hits 47 | 4 22 21 Critical Kills . | . . . Critical Parts Destroyed . | . . . Critical Strikes . | . . . Melee Attacks . | . . . Impact . | . . . Slashing . | . . . Piercing . | . . . Sneak Attacks . | . . . Combat Hostiles . | . . . Follow-up Attacks . | . . . Damage Inflicted 2097 | 179 872 1046 Guns 630 | 176 58 396 Cannons 138 | . . 138 Explosions 1300 | . 788 512 Melee . | . . . Ramming 29 | 3 26 . Kinetic 630 | 176 58 396 Thermal 138 | . . 138 Explosive 1300 | . 788 512 Electromagnetic . | . . . Impact . | . . . Slashing . | . . . Piercing . | . . . Highest Corruption . | . . . Average Corruption . | . . . Corruption Purged . | . . . Corruption Blocked . | . . . Overload Shots . | . . . Overflow Damage 65 | . 63 2 Projectiles . | . . . Explosions 65 | . 63 2 Melee . | . . . Knockbacks . | . . . Impact . | . . . Kinetic . | . . . Secondary . | . . . Self-Inflicted Damage 104 | . 36 68 Shots 7 | . 2 5 Rammed 6 | 1 5 . Targets Rammed 6 | 1 5 . Kicked . | . . . Crushed . | . . . Highest Temperature 2 | . 2 . Average Temperature 2 | . 2 . Received Heat Transfer 168 | . 18 150 Siege Activations . | . . . Martial Activations . | . . . Shielding Activations . | . . . Robots Disrupted . | . . . Combat Hostiles . | . . . Robots Corrupted . | . . . Combat Hostiles . | . . . Parts Fried . | . . . Impact Corruptions . | . . . Robots Melted . | . . . Combat Hostiles . | . . . Parts Melted . | . . . Heat Transferred 185 | . . 185 Parts Sabotaged . | . . . Parts Stolen . | . . . Parts Stripped . | . . . Power Chain Reactions . | . . . Alert | -11 -10 -10 ------- Run | Yrd Mat Sub Maximum Alert Level 1 | . 1 . Low Security (%) 87 | 100 85 . Level 1 12 | . 14 . Level 2 . | . . . Level 3 . | . . . Level 4 . | . . . Level 5 . | . . . High Security . | . . . Max Security . | . . . Peak Influence 241 | 15 241 . Initial . | . . . Average 90 | 1 105 . Influence Increases 569 | 15 459 95 Destroy 0b10 Robot/C 280 | . 200 80 Destroy 0b10 Robot/NC 45 | 15 30 . Destroy Leader 52 | . 52 . Successful Hack 18 | . 18 . Select Force Hacks 30 | . 30 . Disable Machine 60 | . 60 . Destroy Structure 69 | . 69 . Lose Combat Pursuer 15 | . . 15 Influence Decreases 508 | 15 336 157 Entered New Map 60 | . . 60 Time Decay 438 | 15 336 87 Lost Part 10 | . . 10 Squads Dispatched 4 | . 4 . Investigation 3 | . 3 . Extermination . | . . . Reinforcement 1 | . 1 . Assault . | . . . Garrison . | . . . Intercept . | . . . Searches Triggered . | . . . Construction Impeded . | . . . Haulers Reinforced . | . . . Active Scanning Responses . | . . . Cargo Convoy Interrupts . | . . . Stealth | -11 -10 -10 --------- Run | Yrd Mat Sub Distress Signals 1 | . 1 . Communications Jammed . | . . . Distress Signals . | . . . Times Spotted 26 | . 14 12 Peak Tracking Total 5 | . 4 5 Tactical Retreats 1 | . . 1 Traps | -11 -10 -10 ------- Run | Yrd Mat Sub Traps Triggered 4 | . 3 1 Indirectly . | . . . Trap Hack Attempts . | . . . Triggered . | . . . Disarmed . | . . . Reprogrammed . | . . . Reused . | . . . Traps Extracted . | . . . Installed . | . . . Triggered . | . . . Machines | -11 -10 -10 ---------- Run | Yrd Mat Sub Machines Disabled 7 | . 4 3 Max in Single Turn 2 | . 2 1 Machines Repaired . | . . . Machines Dismantled . | . . . Machines Sabotaged . | . . . Overloaded Fab Kills . | . . . Hacking | -11 -10 -10 --------- Run | Yrd Mat Sub Machines Accessed 10 | . 8 2 Terminals 7 | . 7 . Fabricators . | . . . Repair Stations . | . . . Recycling Units 1 | . 1 . Scanalyzers . | . . . Garrison Access . | . . . Total Hacks 29 | . 24 5 Successful 17 | . 12 5 Failed 12 | . 12 . Catastrophic 3 | . 3 . Database Lockouts . | . . . Manual 23 | . 23 . Terminals 22 | . 22 . Fabricators . | . . . Repair Stations . | . . . Recycling Units 2 | . 2 . Scanalyzers . | . . . Garrison Access . | . . . Terminal Hacks 6 | . 1 5 Record 4 | . . 4 Branch Access Points 1 | . 1 . Proto ID Catalog 1 | . . 1 Fabricator Hacks . | . . . Repair Station Hacks . | . . . Recycling Unit Hacks 1 | . 1 . Report Inventory 1 | . 1 . Scanalyzer . | . . . Garrison Access Hacks . | . . . Unauthorized Hacks 10 | . 10 . Terminals 9 | . 9 . Botnet 3 | . 3 . Skim 6 | . 6 . Fabricators . | . . . Repair Stations . | . . . Recycling Units 1 | . 1 . Tunnel 1 | . 1 . Scanalyzers . | . . . Garrison Access . | . . . Data Cores Recovered . | . . . Used . | . . . Hacking Detections 6 | . 6 . Full Trace Events . | . . . Feedback Events . | . . . Feedback Blocked . | . . . Robot Schematics Acquired . | . . . Robots Built . | . . . Authchips . | . . . Time . | . . . Total Robot Build Rating . | . . . Part Schematics Acquired . | . . . Parts Built . | . . . Authchips . | . . . Time . | . . . Total Part Build Rating . | . . . Parts Repaired . | . . . Time . | . . . Parts Recycled . | . . . Recycled Matter . | . . . Retrieved Matter . | . . . Retrieved Components . | . . . Parts Scanalyzed . | . . . Part Schematics Acquired . | . . . Parts Damaged . | . . . Bothacking | -11 -10 -10 ------------ Run | Yrd Mat Sub Used RIF Installer . | . . . Robots Hacked . | . . . Non-combat . | . . . Combat . | . . . Robot Hacks Applied . | . . . Relay Couplers Released . | . . . Fabnet Peak Effective % . | . . . Robots Rewired . | . . . Allies Hacked . | . . . Hacks Repelled . | . . . Allies | -11 -10 -10 -------- Run | Yrd Mat Sub Total Allies . | . . . Largest Group . | . . . Highest-Rated Group . | . . . Highest-Rated Ally . | . . . Total Orders . | . . . Ally Attacks . | . . . Total Damage . | . . . Kills . | . . . Allies Corrupted . | . . . Allies Melted . | . . . Intel | -11 -10 -10 ------- Run | Yrd Mat Sub Active Infowar (turns) 1328 | . 42 1286 Structural 1328 | . 42 1286 Robot Analysis Total . | . . . Derelict Logs Recovered 1 | . . 1 Drone Launches . | . . . Drone Recoveries . | . . . Exploration | -11 -10 -10 ------------- Run | Yrd Mat Sub Turns Passed 2238 | 138 814 1286 Spaces Moved 1291 | 61 445 785 Core 3 | 3 . . Treads 850 | 58 445 347 Legs . | . . . Wheels 438 | . . 438 Hover . | . . . Flight . | . . . Fastest Speed 50 | 50 160 105 Average Speed 143 | 154 160 133 Slowest Speed 160 | 160 160 160 Overloaded Moves . | . . . Propulsion Burnouts . | . . . Robots Hopped . | . . . Potential Cave-ins . | . . . Cave-ins Triggered . | . . . Exploration Rate (%) 44 | 5 84 44 Regions Visited 2 Branch Regions 1 Pre-discovered Areas 1 | . 1 . Known Exits Taken 1 | . 1 . Unknown Exits Taken 1 | 1 . . Scrap Searched . | . . . Spaces Dug 2 | . . 2 Terrain Destroyed 122 | . 72 50 Melee . | . . . Projectile . | . . . AOE 122 | . 72 50 Terrain Rammed . | . . . Walls Destroyed . | . . . Machines Disabled . | . . . Actions | -11 -10 -10 --------- Run | Yrd Mat Sub Total 1513 | 81 522 910 Wait 87 | . 41 46 Move 1289 | 60 444 785 Hop . | . . . Pick Up 17 | 4 5 8 Fast Attach 9 | 6 2 1 Attach 4 | . 1 3 Detach 2 | . 2 . Swap 9 | . 1 8 Drop 3 | . 3 . Fire 87 | 10 18 59 Melee . | . . . Ram . | . . . Kick . | . . . Crush 6 | 1 5 . Escape Stasis . | . . . Rewire . | . . . Trap . | . . . Miscellaneous . | . . . Route ------- -11/Scrapyard -10/Materials (discovered 6 exits: [*Mat x3] / *Min x2 / *Sub) -10/Subcaves (discovered 2 exits: [*Mat] / *Rec) History --------- Turn | Location | Event 8 | -11/Scrapyard | Discovered new exit (range 15) 139 | -11/Scrapyard | Entered Materials 184 | -10/Materials | Discovered new exit (range 13) 309 | -10/Materials | Build established: Mutant 346 | -10/Materials | Discovered new exit (range 16) 475 | -10/Materials | Identified exit to Mines 570 | -10/Materials | Discovered new exit (range 16) 712 | -10/Materials | Discovered new exit (range 5) 721 | -10/Materials | Identified exit to Subcaves 769 | -10/Materials | Learned 4 Recycling zone layouts 861 | -10/Materials | Learned location of 2 exits from Materials 930 | -10/Materials | Learned location of 2 exits from Materials 953 | -10/Materials | Entered Subcaves 954 | -10/Subcaves | Identified exit to Recycling 1022 | -10/Subcaves | Discovered new exit (range 6) 1435 | -10/Subcaves | Shifting Twisted Machinery released Sub. Beam Cannon 1451 | -10/Subcaves | Shifting Twisted Machinery released Sub. Beam Cannon 1500 | -10/Subcaves | Learned Materials garrison access intel 1513 | -10/Subcaves | Visited Clippyterm 1518 | -10/Subcaves | Learned Factory garrison access intel 1653 | -10/Subcaves | Core integrity fell below 50% 1698 | -10/Subcaves | Lost 3 parts (1p1n1w) 1738 | -10/Subcaves | Core integrity fell below 20% 1815 | -10/Subcaves | Visited 4L-MR0's lab 1825 | -10/Subcaves | Found Flightbrick 2053 | -10/Subcaves | A swath of the cavern ceiling suddenly collapsed 2239 | -10/Subcaves | Destroyed by Autobeam Turret with Autobeam Last Messages --------------- 02082_ Acquired 56 matter. 02083_ Subatomizers dissect the Sub. Monowheel. 02083_ Acquired 1 matter. 02084_ Acquired 50 matter. 02087_ Acquired Sub. Machine Gun. 02093_ Acquired Sub. Monowheel. 02103_ Acquired Sub. Machine Gun. 02105_ Acquired Sub. Monowheel. 02106_ Subatomizers dissect the Disposable Heat Sink. 02227_ Machine disabled. 02227_ S-10 Pest destroyed. 02230_ Machine disabled. 02231_ Lgt. Ion Engine fries itself beyond repair. 02232_ S-10 Pest destroyed. 02233_ Lgt. Assault Rifle fries itself beyond repair. 02234_ S-10 Pest destroyed. 02237_ Mining Laser destroyed. Map ----- +----------------------------------------------------+ | ### & ##"""" """#####" ###???????????????????? | | # # "" " "" ""####???? ###???????????????????? | | " ""######### ##???????????????????? | | ## #####"###"" ######### # ???????????????????? | | ############"" ### ## ???????????????????? | | ## #########"" ## ##????????????????????? | | ????### ### #### ####????????????????????? | | ????## ?## ### #######??????????????????? | | ???### ### ## #########?????????????? | | ??#### #### ########????????????? | | ?#### ##### ## ####???????????? | | ?### ###### ###???????????? | | ?## ## ## ### ##???????????? | | ?### ### #### ##???????????? | | ??### ### #### ###???????????? | | ???### ## ### ###????????????? | | ???### ####????????????? | | ????## ## ####?????????????? | | ????####### ###?######???????# | | ????######## ## ## ##??###########??# | | ############# ### ###### ###### #######??# | | ################### ###### ####### "##### | | ## ## ########### ###### ##### # ##### | | # ########### ##### # # #### " | | # ##### ###### ### | | # ##?## #### @##### | | ##### ##### ### # # " | | ###### ###### ############ " | | ####### ##?## ### # # """"" | | # ## ##?## "" #### # "" | | ##### "" # ######## ### | | ## ##### """ "############ | | ## ## ### """ """ [ ############ | | ############# ##????????## | | ############## "" ##"## t ????????## | | ???????????#### "####### > ??????? # | | ????????????### ######## "# # t ?????????? | | ?????????????#######?## "##### # ?????????? | | ?????????????######??## "#####" ##?????????? | | ?????????????????????####" "####""" ?"##?????????? | | ?????????????????????##### "]####???###?????????? | | ???????????????????????####" ###???????????????? | | ????????????????????????#### ##???????????????? | | ?????????????????????????### ##???????????????? | | ??????????????????????????### ###???????????????? | | ??????????????????????????########???????????????? | | ???????????????????????????######????????????????? | | ?????????????????????????????????????????????????? | | ?????????????????????????????????????????????????? | | ?????????????????????????????????????????????????? | +----------------------------------------------------+ Best States ------------- Heat Dissipation 25 Energy Generation 10 Energy Capacity 250 Matter Stores 247 Matter Capacity 300 Sight Range 16 Terrain Scan Density 10 Evasion (%) 40 Recoil Reduction 2 Item Schematics ----------------- None Robot Schematics ------------------ None Fabricated ------------ Nothing Repaired ---------- Nothing Alien Tech Used ----------------- None Achievements -------------- None Challenges ------------ None Game ------ Seed ChainAssembledParser Manual? 0 Play Time 00:13:28 Cumulative 174.8 hours Start 2025.07.22 @ 19:24:06 End 2025.07.22 @ 19:43:09 Sessions 1 Manual Loads 0 Difficulty Rogue Special Mode None Game No. 205 Rogue 205 Adventurer 0 Explorer 0 Win Type - Total 3 Types 1/0/0/1/0/0/0/0/0/1 Lore% 68 Gallery% 63 Achievement% 56 Wizard Run 0 Options --------- Layout 1 ASCII 0 Keyboard 1 Movement Arrows Keybinds 0 Fullscreen 1 Font 36/Smallcaps Map View 50x40 Zoom Use 0% Tactical HUD 1 Map Filters NONE Filters NONE Steam 1 RUN: a834290b-94b7-466c-ab3b-1496a92c104e